fUSD/lending_fUSD_20250407
["ID","MTS","AMOUNT","RATE_DAILY","PERIOD"]
[357377643,1744023069919,-500.0,0.00052602,120]
[357377644,1744023069929,-500.0,0.00052602,120]
[357377645,1744023069938,-500.0,0.00052602,120]
[357377646,1744023069947,-500.0,0.00052602,120]
[357377647,1744023069957,-500.0,0.00052602,120]
[357377648,1744023069966,-500.0,0.00052602,120]
[357377649,1744023069975,-500.0,0.00052602,120]
[357377650,1744023069985,-500.0,0.00052602,120]
[357377651,1744023069994,-500.0,0.00052602,120]
[357377652,1744023070003,-500.0,0.00052602,120]
[357377653,1744023070012,-500.0,0.00052602,120]
[357377654,1744023070021,-500.0,0.00052602,120]
[357377655,1744023070031,-500.0,0.00052602,120]
[357377656,1744023070040,-500.0,0.00052602,120]
[357377657,1744023070049,-208.68451173,0.00052602,120]
[357377658,1744023070058,-500.0,0.00052602,120]
[357377659,1744023070067,-500.0,0.00052602,120]
[357377660,1744023070077,-601.55,0.00052602,120]
[357377661,1744023070087,-500.0,0.00052602,120]
[357377662,1744023070096,-500.0,0.00052602,120]
[357377663,1744023070105,-500.0,0.00052602,120]
[357377664,1744023070115,-532.71926886,0.00052602,120]
[357377665,1744023070124,-500.0,0.00052602,120]
[357377666,1744023070133,-533.30957073,0.00052602,120]
[357377667,1744023070143,-500.0,0.00052602,120]
[357377668,1744023070152,-500.0,0.00052602,120]
[357377669,1744023070162,-500.0,0.00052602,120]
[357377670,1744023070171,-500.0,0.00052602,120]
[357377671,1744023070180,-993.97,0.00052602,120]
[357377672,1744023070190,-518.78831405,0.00052602,120]
[357377673,1744023070199,-500.0,0.00052602,120]
[357377674,1744023070209,-500.0,0.00052602,120]
[357377675,1744023070218,-500.0,0.00052602,120]
[357377676,1744023070228,-582.13457163,0.00052602,120]
[357377677,1744023070237,-512.9,0.00052602,120]
[357377678,1744023070247,-500.0,0.00052602,120]
[357377679,1744023070256,-500.0,0.00052602,120]
[357377680,1744023070266,-500.0,0.00052602,120]
[357377681,1744023070275,-500.0,0.00052602,120]
[357377682,1744023070286,-500.0,0.00052602,120]
[357377683,1744023070296,-500.0,0.00052602,120]
[357377684,1744023070306,-519.02698692,0.00052602,120]
[357377685,1744023070316,-500.0,0.00052602,120]
[357377686,1744023070327,-500.0,0.00052602,120]
[357377687,1744023070341,-500.0,0.00052602,120]
[357377688,1744023070351,-500.0,0.00052602,120]
[357377689,1744023070363,-500.0,0.00052602,120]
[357377690,1744023070374,-500.0,0.00052602,120]
[357377691,1744023070384,-500.0,0.00052602,120]
[357377692,1744023070394,-500.0,0.00052602,120]
[357377693,1744023070405,-587.01441021,0.00052602,120]
[357377694,1744023070416,-500.0,0.00052602,120]
[357377695,1744023070427,-500.0,0.00052602,120]
[357377696,1744023070438,-500.0,0.00052602,120]
[357377697,1744023070448,-509.15,0.00052602,120]
[357377698,1744023070459,-500.0,0.00052602,120]
[357377699,1744023070469,-500.0,0.00052602,120]
[357377700,1744023070480,-500.0,0.00052602,120]
[357377701,1744023070492,-500.0,0.00052602,120]
[357377702,1744023070502,-500.0,0.00052602,120]
[357377703,1744023070512,-500.0,0.00052602,120]
[357377704,1744023070523,-500.0,0.00052602,120]
[357377705,1744023070533,-500.0,0.00052602,120]
[357377706,1744023070542,-500.0,0.00052602,120]
[357377707,1744023070552,-500.0,0.00052602,120]
[357377708,1744023070561,-500.0,0.00052602,120]
[357377709,1744023070572,-500.0,0.00052602,120]
[357377710,1744023070589,-500.0,0.00052602,120]
[357377711,1744023070770,-500.0,0.00052602,120]
[357377712,1744023070791,-500.0,0.00052602,120]
[357377713,1744023070800,-500.0,0.00052602,120]
[357377714,1744023070810,-500.0,0.00052602,120]
[357377715,1744023070819,-500.0,0.00052602,120]
[357377716,1744023070832,-500.0,0.00052602,120]
[357377717,1744023070843,-500.0,0.00052602,120]
[357377718,1744023070853,-500.0,0.00052602,120]
[357377719,1744023070863,-500.0,0.00052602,120]
[357377720,1744023070873,-500.0,0.00052602,120]
[357377721,1744023070886,-640.06,0.00052602,120]
[357377722,1744023070896,-500.0,0.00052602,120]
[357377723,1744023070905,-1068.89,0.00052602,120]
[357377724,1744023070916,-620.58,0.00052602,120]
[357377725,1744023070925,-500.0,0.00052602,120]
[357377726,1744023070935,-621.42969885,0.00052602,120]
[357377727,1744023070945,-500.0,0.00052602,120]
[357377728,1744023070955,-500.0,0.00052602,120]
[357377729,1744023070964,-500.0,0.00052602,120]
[357377730,1744023070974,-500.0,0.00052602,120]
[357377731,1744023070983,-1020.79,0.00052602,120]
[357377732,1744023070993,-500.0,0.00052602,120]
[357377733,1744023071004,-500.0,0.00052602,120]
[357377734,1744023071014,-500.0,0.00052602,120]
[357377735,1744023071024,-500.0,0.00052602,120]
[357377736,1744023071034,-500.0,0.00052602,120]
[357377737,1744023071044,-622.84,0.00052602,120]
[357377738,1744023071054,-500.0,0.00052602,120]
[357377739,1744023071064,-500.0,0.00052602,120]
[357377740,1744023071074,-500.0,0.00052602,120]
[357377741,1744023071087,-918.95,0.00052602,120]
[357377742,1744023071097,-500.0,0.00052602,120]
[357377743,1744023071108,-617.69,0.00052602,120]
[357377744,1744023071118,-500.0,0.00052602,120]
[357377745,1744023071127,-500.0,0.00052602,60]
[357377746,1744023071138,-940.7,0.00052602,120]
[357377747,1744023071147,-500.0,0.00052602,120]
[357377748,1744023071157,-500.0,0.00052602,120]
[357377749,1744023071167,-500.0,0.00052602,120]
[357377750,1744023071177,-500.0,0.00052602,120]
[357377751,1744023071187,-823.2,0.00052602,120]
[357377752,1744023071197,-500.0,0.00052602,120]
[357377753,1744023071207,-500.0,0.00052602,120]
[357377754,1744023071217,-500.0,0.00052602,120]
[357377755,1744023071227,-500.0,0.00052602,120]
[357377756,1744023071237,-500.0,0.00052602,120]
[357377757,1744023071247,-500.0,0.00052602,120]
[357377758,1744023071257,-500.0,0.00052602,120]
[357377759,1744023071267,-500.0,0.00052602,120]
[357377760,1744023071277,-500.0,0.00052602,120]
[357377761,1744023071287,-500.0,0.00052602,120]
[357377762,1744023071298,-500.0,0.00052602,120]
[357377763,1744023071307,-500.0,0.00052602,120]
[357377764,1744023071317,-500.0,0.00052602,120]
[357377765,1744023071327,-500.0,0.00052602,120]
[357377766,1744023071338,-500.0,0.00052602,120]
[357377767,1744023071347,-500.0,0.00052602,120]
[357377768,1744023071356,-500.0,0.00052602,120]
[357377769,1744023071366,-500.0,0.00052602,120]
[357377770,1744023071376,-500.0,0.00052602,120]
[357377771,1744023071385,-500.0,0.00052602,120]
[357377772,1744023071395,-500.0,0.00052602,120]
[357377773,1744023071404,-861.85,0.00052602,120]
[357377774,1744023071414,-1297.45,0.00052602,120]
[357377775,1744023071424,-746.67,0.00052602,120]
[357377776,1744023071434,-500.0,0.00052602,120]
[357377777,1744023071444,-500.0,0.00052602,120]
[357377778,1744023071453,-500.0,0.00052602,120]
[357377779,1744023071462,-500.0,0.00052602,120]
[357377780,1744023071472,-500.0,0.00052602,120]
[357377781,1744023071482,-988.01,0.00052602,120]
[357377782,1744023071492,-500.0,0.00052602,120]
[357377783,1744023071503,-555.94,0.00052602,120]
[357377784,1744023071513,-500.0,0.00052602,120]
[357377785,1744023071523,-520.55,0.00052602,120]
[357377786,1744023071532,-500.0,0.00052602,120]
[357377787,1744023071542,-500.0,0.00052602,120]
[357377788,1744023071552,-500.0,0.00052602,120]
[357377789,1744023071563,-511.33,0.00052602,120]
[357377790,1744023071573,-500.0,0.00052602,120]
[357377791,1744023071586,-500.0,0.00052602,120]
[357377792,1744023071596,-500.0,0.00052602,30]
[357377793,1744023071606,-501.03,0.00052602,120]
[357377794,1744023071616,-500.0,0.00052602,120]
[357377795,1744023071626,-501.07,0.00052602,120]
[357377796,1744023071636,-500.0,0.00052602,120]
[357377797,1744023071647,-500.0,0.00052602,120]
[357377798,1744023071656,-500.0,0.00052602,120]
[357377799,1744023071665,-500.0,0.00052602,120]
[357377800,1744023071675,-892.51,0.00052602,120]
[357377801,1744023071684,-500.0,0.00052602,120]
[357377802,1744023071693,-500.0,0.00052602,120]
[357377803,1744023071704,-500.0,0.00052602,120]
[357377804,1744023071714,-500.0,0.00052602,120]
[357377805,1744023071724,-500.0,0.00052602,120]
[357377806,1744023071733,-500.0,0.00052602,120]
[357377807,1744023071743,-500.0,0.00052602,120]
[357377808,1744023071753,-500.0,0.00052602,120]
[357377809,1744023071762,-500.0,0.00052602,120]
[357377810,1744023071772,-500.0,0.00052602,120]
[357377811,1744023071782,-660.54,0.00052602,120]
[357377812,1744023071791,-500.0,0.00052602,120]
[357377813,1744023071805,-500.0,0.00052602,120]
[357377814,1744023071815,-500.0,0.00052602,120]
[357377815,1744023071824,-680.44,0.00052602,120]
[357377816,1744023071835,-500.0,0.00052602,120]
[357377817,1744023071847,-500.0,0.00052602,120]
[357377818,1744023071856,-496.32738458,0.00052602,120]
[357377819,1744023071866,-500.0,0.00052602,120]
[357377820,1744023071876,-500.0,0.00052602,120]
[357377821,1744023071886,-792.33,0.00052602,120]
[357377822,1744023071896,-594.75,0.00052602,120]
[357377823,1744023071905,-500.0,0.00052602,30]
[357377824,1744023071915,-546.49,0.00052602,120]
[357377825,1744023071924,-501.93317308,0.00052602,120]
[357377826,1744023071934,-868.93,0.00052602,120]
[357377827,1744023071943,-500.0,0.00052602,120]
[357377828,1744023071952,-500.0,0.00052602,120]
[357377829,1744023071962,-500.0,0.00052602,120]
[357377830,1744023071971,-157.9048354,0.00052602,120]
[357377831,1744023071980,-513.73,0.00052602,120]
[357377832,1744023071990,-975.08,0.00052602,120]
[357377833,1744023071999,-500.0,0.00052602,7]
[357377834,1744023072009,-500.0,0.00052602,120]
[357377835,1744023072018,-500.0,0.00052602,120]
[357377836,1744023072027,-500.0,0.00052602,120]
[357377837,1744023072037,-578.07,0.00052602,120]
[357377838,1744023072046,-500.0,0.00052602,120]
[357377839,1744023072056,-795.47,0.00052602,120]
[357377840,1744023072066,-565.93,0.00052602,120]
[357377841,1744023072075,-169.24261575,0.00052602,120]
[357377842,1744023072085,-500.0,0.00052602,120]
[357377843,1744023072094,-941.38,0.00052602,120]
[357377844,1744023072104,-500.0,0.00052602,120]
[357377845,1744023072113,-189.873309,0.00052602,120]
[357377846,1744023072123,-1048.38,0.00052602,120]
[357377847,1744023072132,-500.0,0.00052602,120]
[357377848,1744023072142,-585.99,0.00052602,120]
[357377849,1744023072152,-500.0,0.00052602,120]
[357377850,1744023072161,-500.0,0.00052602,120]
[357377851,1744023072171,-500.0,0.00052602,120]
[357377852,1744023072180,-500.0,0.00052602,120]
[357377853,1744023072189,-500.0,0.00052602,120]
[357377854,1744023072198,-500.0,0.00052602,120]
[357377855,1744023072208,-802.32,0.00052602,120]
[357377856,1744023072218,-500.0,0.00052602,120]
[357377857,1744023072228,-500.0,0.00052602,120]
[357377858,1744023072238,-654.14,0.00052602,120]
[357377859,1744023072247,-500.0,0.00052602,120]
[357377860,1744023072257,-502.97,0.00052602,120]
[357377861,1744023072268,-500.0,0.00052602,120]
[357377862,1744023072277,-881.01,0.00052602,120]
[357377863,1744023072287,-500.0,0.00052602,120]
[357377864,1744023072302,-500.0,0.00052602,120]
[357377865,1744023072311,-500.0,0.00052602,120]
[357377866,1744023072321,-500.0,0.00052602,120]
[357377867,1744023072334,-500.0,0.00052602,120]
[357377868,1744023072344,-3968.759275,0.00052602,120]
[357377869,1744023072354,-500.0,0.00052602,120]
[357377870,1744023072363,-500.0,0.00052602,120]
[357377871,1744023072373,-500.0,0.00052602,120]
[357377872,1744023072383,-650.47,0.00052602,120]
[357377873,1744023072393,-500.0,0.00052602,120]
[357377874,1744023072403,-500.0,0.00052602,120]
[357377875,1744023072412,-500.0,0.00052602,120]
[357377876,1744023072422,-520.18,0.00052602,120]
[357377877,1744023072435,-650.5,0.00052602,120]
[357377878,1744023072445,-506.30031718,0.00052602,120]
[357377879,1744023072455,-500.0,0.00052602,120]
[357377880,1744023072465,-500.0,0.00052602,120]
[357377881,1744023072475,-500.0,0.00052602,120]
[357377882,1744023072484,-500.0,0.00052602,120]
[357377883,1744023072494,-773.91,0.00052602,120]
[357377884,1744023072503,-500.0,0.00052602,120]
[357377885,1744023072513,-500.0,0.00052602,120]
[357377886,1744023072523,-500.0,0.00052602,120]
[357377887,1744023072532,-686.31,0.00052602,120]
[357377888,1744023072542,-500.0,0.00052602,120]
[357377889,1744023072552,-929.14,0.00052602,120]
[357377890,1744023072562,-500.0,0.00052602,120]
[357377891,1744023072572,-684.26,0.00052602,120]
[357377892,1744023072584,-398.071568,0.00052602,120]
[357377893,1744023072595,-868.85,0.00052602,120]
[357377894,1744023072604,-685.86,0.00052602,120]
[357377895,1744023072614,-543.17,0.00052602,120]
[357377896,1744023072624,-500.0,0.00052602,120]
[357377897,1744023072634,-500.0,0.00052602,120]
[357377898,1744023072644,-500.0,0.00052602,120]
[357377899,1744023072654,-500.0,0.00052602,120]
[357377900,1744023072663,-500.0,0.00052602,120]
[357377901,1744023072673,-500.0,0.00052602,120]
[357377902,1744023072683,-500.0,0.00052602,120]
[357377903,1744023072692,-500.0,0.00052602,120]
[357377904,1744023072702,-500.0,0.00052602,120]
[357377905,1744023072712,-312.26061558,0.00052602,120]
[357377906,1744023072722,-563.24,0.00052602,120]
[357377907,1744023072731,-500.0,0.00052602,120]
[357377908,1744023072741,-500.0,0.00052602,120]
[357377909,1744023072751,-500.0,0.00052602,120]
[357377910,1744023072762,-500.0,0.00052602,120]
[357377911,1744023072771,-500.0,0.00052602,120]
[357377912,1744023072781,-500.0,0.00052602,120]
[357377913,1744023072794,-553.29,0.00052602,120]
[357377914,1744023072808,-743.95,0.00052602,120]
[357377915,1744023072817,-500.0,0.00052602,120]
[357377916,1744023072827,-500.0,0.00052602,120]
[357377917,1744023072843,-500.0,0.00052602,120]
[357377918,1744023072855,-500.0,0.00052602,120]
[357377919,1744023072866,-500.0,0.00052602,120]
[357377920,1744023072880,-614.35,0.00052602,120]
[357377921,1744023072891,-618.56,0.00052602,120]
[357377922,1744023072902,-616.47,0.00052602,120]
[357377923,1744023072912,-500.0,0.00052602,120]
[357377924,1744023072923,-500.0,0.00052602,120]
[357377925,1744023072933,-500.0,0.00052602,120]
[357377926,1744023072943,-500.0,0.00052602,120]
[357377927,1744023072953,-1000.0,0.00052602,120]
[357377928,1744023072964,-500.0,0.00052602,120]
[357377929,1744023072973,-500.0,0.00052602,120]
[357377930,1744023072983,-500.0,0.00052602,120]
[357377931,1744023072992,-500.0,0.00052602,120]
[357377932,1744023073002,-500.0,0.00052602,120]
[357377933,1744023073011,-500.0,0.00052602,120]
[357377934,1744023073020,-596.25,0.00052602,120]
[357377935,1744023073030,-500.0,0.00052602,120]
[357377936,1744023073039,-500.0,0.00052602,120]
[357377937,1744023073048,-1062.8,0.00052602,120]
[357377938,1744023073059,-500.0,0.00052602,120]
[357377939,1744023073068,-500.0,0.00052602,120]
[357377940,1744023073077,-531.26,0.00052602,120]
[357377941,1744023073092,-500.0,0.00052602,120]
[357377942,1744023073102,-699.46,0.00052602,120]
[357377943,1744023073112,-500.0,0.00052602,120]
[357377944,1744023073122,-935.9,0.00052602,120]
[357377945,1744023073131,-772.97,0.00052602,120]
[357377946,1744023073141,-583.85,0.00052602,120]
[357377947,1744023073151,-542.23,0.00052602,120]
[357377948,1744023073162,-500.0,0.00052602,60]
[357377949,1744023073171,-674.19,0.00052602,120]
[357377950,1744023073180,-520.15870948,0.00052602,120]
[357377951,1744023073190,-500.0,0.00052602,120]
[357377952,1744023073199,-2711.94,0.00052602,120]
[357377953,1744023073209,-500.0,0.00052602,120]
[357377954,1744023073218,-918.56,0.00052602,120]
[357377955,1744023073297,-500.0,0.00052602,120]
[357377956,1744023073308,-978.13,0.00052602,120]
[357377957,1744023073318,-500.0,0.00052602,120]
[357377958,1744023073328,-500.0,0.00052602,120]
[357377959,1744023073344,-500.0,0.00052602,120]
[357377960,1744023073354,-500.0,0.00052602,120]
[357377961,1744023073363,-500.0,0.00052602,120]
[357377962,1744023073373,-500.0,0.00052602,120]
[357377963,1744023073382,-500.0,0.00052602,120]
[357377964,1744023073392,-500.0,0.00052602,120]
[357377965,1744023073401,-818.15,0.00052602,120]
[357377966,1744023073410,-763.94,0.00052602,120]
[357377967,1744023073419,-732.12,0.00052602,120]
[357377968,1744023073429,-500.0,0.00052602,120]
[357377969,1744023073439,-625.72,0.00052602,120]
[357377970,1744023073449,-500.0,0.00052602,120]
[357377971,1744023073459,-500.0,0.00052602,120]
[357377972,1744023073469,-500.0,0.00052602,120]
[357377973,1744023073479,-500.0,0.00052602,120]
[357377974,1744023073488,-500.0,0.00052602,120]
[357377975,1744023073498,-500.0,0.00052602,120]
[357377976,1744023073508,-431.59468999,0.00052602,120]
[357377977,1744023073517,-1174.6,0.00052602,120]
[357377978,1744023073527,-884.0,0.00052602,120]
[357377979,1744023073536,-500.0,0.00052602,120]
[357377980,1744023073546,-500.0,0.00052602,120]
[357377981,1744023073555,-605.04,0.00052602,120]
[357377982,1744023073564,-500.0,0.00052602,120]
[357377983,1744023073573,-500.0,0.00052602,120]
[357377984,1744023073586,-248.86929271,0.00052602,120]
[357377985,1744023073596,-603.53,0.00052602,120]
[357377986,1744023073606,-500.0,0.00052602,120]
[357377987,1744023073616,-500.0,0.00052602,120]
[357377988,1744023073626,-503.82,0.00052602,120]
[357377989,1744023073635,-500.0,0.00052602,120]
[357377990,1744023073645,-500.0,0.00052602,120]
[357377991,1744023073655,-500.0,0.00052602,120]
[357377992,1744023073664,-191.58498716,0.00052602,120]
[357377993,1744023073674,-872.59,0.00052602,120]
[357377994,1744023073683,-499.57962913,0.00052602,120]
[357377995,1744023073695,-1831.2,0.00052602,120]
[357377996,1744023073726,-500.0,0.00052602,120]
[357377997,1744023073738,-500.0,0.00052602,120]
[357377998,1744023073748,-500.0,0.00052602,120]
[357377999,1744023073758,-500.0,0.00052602,120]
[357378000,1744023073768,-500.0,0.00052602,120]
[357378001,1744023073778,-684.54,0.00052602,120]
[357378002,1744023073791,-603.9500074,0.00052602,120]
[357378003,1744023073802,-500.0,0.00052602,120]
[357378004,1744023073811,-694.36,0.00052602,120]
[357378005,1744023073822,-759.01,0.00052602,120]
[357378006,1744023073835,-500.0,0.00052602,120]
[357378007,1744023073845,-746.91,0.00052602,120]
[357378008,1744023073855,-500.0,0.00052602,120]
[357378009,1744023073864,-500.0,0.00052602,120]
[357378010,1744023073875,-500.0,0.00052602,120]
[357378011,1744023073886,-519.71,0.00052602,120]
[357378012,1744023073895,-649.36,0.00052602,120]
[357378013,1744023073906,-500.0,0.00052602,120]
[357378014,1744023073915,-890.46,0.00052602,120]
[357378015,1744023073925,-500.0,0.00052602,120]
[357378016,1744023073935,-500.0,0.00052602,120]
[357378017,1744023073944,-1791.13,0.00052602,120]
[357378018,1744023073954,-517.06,0.00052602,120]
[357378019,1744023073963,-619.51,0.00052602,120]
[357378020,1744023073973,-613.77,0.00052602,120]
[357378021,1744023073983,-613.15,0.00052602,120]
[357378022,1744023073992,-500.0,0.00052602,120]
[357378023,1744023074002,-1245.5,0.00052602,120]
[357378024,1744023074012,-500.0,0.00052602,120]
[357378025,1744023074021,-863.59,0.00052602,120]
[357378026,1744023074031,-500.0,0.00052602,120]
[357378027,1744023074040,-500.0,0.00052602,120]
[357378028,1744023074049,-745.31,0.00052602,120]
[357378029,1744023074059,-1058.44,0.00052602,120]
[357378030,1744023074068,-500.0,0.00052602,120]
[357378031,1744023074077,-800.07,0.00052602,120]
[357378032,1744023074090,-500.0,0.00052602,120]
[357378033,1744023074100,-500.0,0.00052602,120]
[357378034,1744023074109,-1152.18,0.00052602,120]
[357378035,1744023074119,-641.26,0.00052602,120]
[357378036,1744023074128,-599.49,0.00052602,120]
[357378037,1744023074138,-1620.72,0.00052602,120]
[357378038,1744023074147,-1827.15,0.00052602,120]
[357378039,1744023074156,-500.0,0.00052602,120]
[357378040,1744023074166,-500.0,0.00052602,120]
[357378041,1744023074176,-546.18,0.00052602,120]
[357378042,1744023074185,-608.56,0.00052602,120]
[357378043,1744023074195,-500.0,0.00052602,120]
[357378044,1744023074204,-768.32,0.00052602,120]
[357378045,1744023074214,-500.0,0.00052602,120]
[357378046,1744023074224,-500.0,0.00052602,120]
[357378047,1744023074234,-500.0,0.00052602,120]
[357378048,1744023074243,-500.0,0.00052602,120]
[357378049,1744023074252,-736.33,0.00052602,120]
[357378050,1744023074262,-500.0,0.00052602,120]
[357378051,1744023074272,-1058.97,0.00052602,120]
[357378052,1744023074282,-1554.26,0.00052602,120]
[357378053,1744023074291,-500.0,0.00052602,120]
[357378054,1744023074300,-852.5,0.00052602,120]
[357378055,1744023074310,-515.01431965,0.00052602,120]
[357378056,1744023074320,-500.0,0.00052602,120]
[357378057,1744023074334,-500.0,0.00052602,120]
[357378058,1744023074343,-1136.92,0.00052602,120]
[357378059,1744023074353,-917.77,0.00052602,120]
[357378060,1744023074363,-909.99,0.00052602,120]
[357378061,1744023074372,-500.0,0.00052602,120]
[357378062,1744023074381,-500.0,0.00052602,120]
[357378063,1744023074391,-402.92490821,0.00052602,120]
[357378064,1744023074401,-1269.1,0.00052602,120]
[357378065,1744023074411,-500.0,0.00052602,120]
[357378066,1744023074421,-540.97,0.00052602,120]
[357378067,1744023074431,-1123.58,0.00052602,120]
[357378068,1744023074441,-500.0,0.00052602,120]
[357378069,1744023074450,-500.0,0.00052602,120]
[357378070,1744023074460,-500.0,0.00052602,120]
[357378071,1744023074471,-500.0,0.00052602,120]
[357378072,1744023074480,-626.76,0.00052602,120]
[357378073,1744023074490,-691.99,0.00052602,120]
[357378074,1744023074499,-500.0,0.00052602,120]
[357378075,1744023074509,-500.0,0.00052602,120]
[357378076,1744023074519,-3064.34,0.00052602,120]
[357378077,1744023074529,-2424.54,0.00052602,120]
[357378078,1744023074539,-500.0,0.00052602,120]
[357378079,1744023074548,-500.0,0.00052602,120]
[357378080,1744023074559,-595.28631575,0.00052602,120]
[357378081,1744023074568,-1821.44,0.00052602,120]
[357378082,1744023074578,-891.38,0.00052602,120]
[357378083,1744023074591,-500.0,0.00052602,120]
[357378084,1744023074601,-622.38,0.00052602,120]
[357378085,1744023074611,-856.39,0.00052602,120]
[357378086,1744023074621,-573.15543055,0.00052602,120]
[357378087,1744023074631,-500.0,0.00052602,120]
[357378088,1744023074641,-498.99894362,0.00052602,120]
[357378089,1744023074652,-500.0,0.00052602,120]
[357378090,1744023074661,-1876.34,0.00052602,120]
[357378091,1744023074671,-500.0,0.00052602,120]
[357378092,1744023074680,-500.0,0.00052602,120]
[357378093,1744023074690,-500.0,0.00052602,120]
[357378094,1744023074701,-500.0,0.00052602,120]
[357378095,1744023074711,-500.0,0.00052602,120]
[357378096,1744023074721,-500.0,0.00052602,120]
[357378097,1744023074731,-500.0,0.00052602,120]
[357378098,1744023074741,-500.0,0.00052602,120]
[357378099,1744023074751,-771.18,0.00052602,120]
[357378100,1744023074762,-500.0,0.00052602,120]
[357378101,1744023074772,-1178.95,0.00052602,120]
[357378102,1744023074783,-500.0,0.00052602,120]
[357378103,1744023074793,-1204.08,0.00052602,120]
[357378104,1744023074808,-500.0,0.00052602,120]
[357378105,1744023074818,-712.94,0.00052602,120]
[357378106,1744023074829,-500.0,0.00052602,120]
[357378107,1744023074846,-500.0,0.00052602,120]
[357378108,1744023074857,-1000.0,0.00052602,120]
[357378109,1744023074867,-668.09,0.00052602,120]
[357378110,1744023074877,-401.68224759,0.00052602,120]
[357378111,1744023074887,-500.0,0.00052602,120]
[357378112,1744023074896,-749.4,0.00052602,120]
[357378113,1744023074906,-500.0,0.00052602,120]
[357378114,1744023074916,-500.0,0.00052602,120]
[357378115,1744023074926,-528.5946185,0.00052602,120]
[357378116,1744023074936,-511.93,0.00052602,120]
[357378117,1744023074947,-577.2,0.00052602,120]
[357378118,1744023074956,-500.0,0.00052602,120]
[357378119,1744023074968,-2142.78,0.00052602,120]
[357378120,1744023074978,-500.0,0.00052602,120]
[357378121,1744023074987,-500.0,0.00052602,120]
[357378122,1744023074997,-785.05,0.00052602,120]
[357378123,1744023075007,-1319.22,0.00052602,120]
[357378124,1744023075016,-178.54925436,0.00052602,120]
[357378125,1744023075027,-548.16,0.00052602,120]
[357378126,1744023075036,-249.23727639,0.00052602,120]
[357378127,1744023075627,-250.76272361,0.00052602,120]
[357378128,1744023075637,-500.0,0.00052602,120]
[357378129,1744023075647,-647.38,0.00052602,120]
[357378130,1744023075656,-500.0,0.00052602,120]
[357378131,1744023075666,-500.0,0.00052602,120]
[357378132,1744023075676,-500.0,0.00052602,120]
[357378133,1744023075686,-500.0,0.00052602,120]
[357378134,1744023075696,-500.0,0.00052602,120]
[357378135,1744023075706,-910.2,0.00052602,120]
[357378136,1744023075717,-500.0,0.00052602,120]
[357378137,1744023075726,-500.0,0.00052602,120]
[357378138,1744023075736,-500.0,0.00052602,120]
[357378139,1744023075747,-500.0,0.00052602,120]
[357378140,1744023075757,-500.0,0.00052602,10]
[357378141,1744023075767,-670.93,0.00052602,120]
[357378142,1744023075777,-500.0,0.00052602,120]